bitfinex-derivatives/quotes_BTCF0:USTF0_20210105
["timestamp","ask_amount","ask_price","bid_price","bid_amount"]
[1609818156984,0.13632608,31743.0,31693.0,0.2895]
[1609818156985,0.13632608,31743.0,31727.0,5.2549]
[1609818157384,0.1134,31765.0,31727.0,5.2549]
[1609818158785,0.1134,31765.0,31737.0,0.13632608]
[1609818159287,0.09959,31793.0,31737.0,3.94912608]
[1609818159687,0.09959,31793.0,31737.0,3.8128]
[1609818160889,0.13632608,31749.0,31745.0,0.13632608]
[1609818161088,0.15399,31773.0,31745.0,0.13632608]
[1609818161289,4.0635,31770.0,31745.0,0.13632608]
[1609818161489,0.15399,31773.0,31745.0,0.13632608]
[1609818162089,0.0931,31772.0,31718.0,5.0403]
[1609818162289,0.15399,31773.0,31718.0,5.0403]
[1609818163395,3.8358,31762.0,31695.0,0.2721]
[1609818163591,3.97377,31762.0,31695.0,0.2721]
[1609818164495,0.0939,31761.0,31695.0,0.2721]
[1609818165493,0.0939,31761.0,31694.0,2.02380305]
[1609818165793,0.0939,31761.0,31695.0,0.2841]
[1609818165995,0.0939,31761.0,31708.0,0.13632608]
[1609818166396,0.0939,31761.0,31695.0,0.2841]
[1609818166998,3.9545,31737.0,31695.0,0.2841]
[1609818167198,4.05497,31737.0,31695.0,0.2841]
[1609818167897,0.13632608,31696.0,31695.0,0.2841]
[1609818168097,0.23384608,31696.0,31695.0,0.2841]
[1609818168298,0.09752,31696.0,31695.0,0.2841]
[1609818168800,0.15911,31719.0,31695.0,0.2841]
[1609818169803,0.10047,31737.0,31695.0,0.2841]
[1609818170500,0.0942,31736.0,31695.0,0.2841]
[1609818170704,0.10047,31737.0,31695.0,0.2841]
[1609818170903,0.10047,31737.0,31721.0,0.13632608]
[1609818171103,0.10047,31737.0,31706.0,0.10946]
[1609818171912,0.0935,31736.0,31706.0,0.10946]
[1609818172106,0.10047,31737.0,31706.0,0.10946]
[1609818172307,0.01710163,31748.0,31706.0,0.10946]
[1609818172507,0.01711097,31751.0,31706.0,0.10946]
[1609818173007,0.01711097,31751.0,31716.0,0.13632608]
[1609818173409,0.01711097,31751.0,31712.0,0.0954]
[1609818173608,0.16260097,31751.0,31712.0,0.0954]
[1609818174412,0.14549,31751.0,31712.0,0.0954]
[1609818174914,0.14549,31751.0,31719.0,0.13632608]
[1609818175611,0.14549,31751.0,31712.0,0.0954]
[1609818176413,0.14549,31751.0,31714.0,3.6943]
[1609818178616,0.13797,31762.0,31714.0,3.6943]
[1609818178818,0.52822451,31765.0,31706.0,0.10946]
[1609818179019,0.52822451,31765.0,31702.0,5.0061]
[1609818179221,0.68917451,31765.0,31669.0,0.0942]
[1609818179422,4.3365,31760.0,31693.0,0.0938]
[1609818179822,0.0941,31759.0,31693.0,0.0938]
[1609818180022,0.0941,31759.0,31688.0,4.3895]
[1609818181322,0.13632608,31693.0,31688.0,4.3895]
[1609818181522,0.13632608,31693.0,31682.0,0.13632608]
[1609818182324,0.13632608,31693.0,31686.0,0.0943]
[1609818182526,0.13632608,31693.0,31682.0,0.13632608]
[1609818183426,0.13632608,31693.0,31688.0,0.13632608]
[1609818184226,0.13632608,31693.0,31667.0,3.7649]
[1609818184926,0.13632608,31693.0,31686.0,0.0947]
[1609818185326,0.13632608,31693.0,31680.0,0.13632608]
[1609818185727,0.13632608,31693.0,31667.0,3.7649]
[1609818185926,0.23172608,31693.0,31678.0,0.0951]
[1609818186328,0.23172608,31693.0,31686.0,0.0935]
[1609818186827,0.13632608,31693.0,31686.0,0.0935]
[1609818187728,0.13632608,31693.0,31677.0,0.13632608]
[1609818187930,0.13632608,31693.0,31667.0,3.7649]
[1609818188130,0.0951,31692.0,31618.0,2.02799967]
[1609818188330,0.13632608,31693.0,31618.0,2.02799967]
[1609818188530,0.13632608,31693.0,31646.0,0.42235]
[1609818188930,0.13632608,31693.0,31647.0,0.0948]
[1609818189131,0.14672,31694.0,31647.0,0.0948]
[1609818189331,0.10368,31712.0,31660.0,4.0014]
[1609818189530,0.01706451,31719.0,31661.0,0.0956]
[1609818189732,0.13632608,31682.0,31681.0,0.13632608]
[1609818189932,0.15519,31682.0,31681.0,0.13632608]
[1609818190533,0.15519,31682.0,31667.0,0.0953]
[1609818190936,0.15519,31682.0,31662.0,3.7148]
[1609818191133,0.15519,31682.0,31634.0,0.2718]
[1609818191333,0.13642,31689.0,31657.0,4.0661]
[1609818191735,0.13642,31689.0,31684.0,0.13632608]
[1609818192136,0.13642,31689.0,31688.0,4.9061]
[1609818192335,0.2734,31724.0,31688.0,4.9061]
[1609818192736,0.0171333,31725.0,31688.0,4.9061]
[1609818192937,0.01712328,31724.0,31688.0,4.9061]
[1609818193138,0.11751328,31724.0,31688.0,4.9061]
[1609818193736,0.11751328,31724.0,31716.0,0.13632608]
[1609818194336,0.00779521,31725.0,31716.0,0.13632608]
[1609818194936,0.095,31724.0,31716.0,0.13632608]
[1609818195136,0.21406,31724.0,31702.0,4.1319]
[1609818195336,0.11906,31724.0,31702.0,4.1319]
[1609818195937,0.11906,31724.0,31703.0,0.0958]
[1609818196338,0.11906,31724.0,31710.0,0.13632608]
[1609818196538,0.11906,31724.0,31711.0,0.0945]
[1609818197342,0.11906,31724.0,31702.0,4.1319]
[1609818197543,0.11906,31724.0,31639.0,0.3808]
[1609818197741,0.11906,31724.0,31653.0,4.5491]
[1609818199045,0.11906,31724.0,31690.0,0.13632608]
[1609818200047,0.00779521,31725.0,31690.0,0.13632608]
[1609818201047,0.00779521,31725.0,31700.0,0.13632608]
[1609818201248,0.00779521,31725.0,31685.0,4.0241]
[1609818201449,0.14470521,31725.0,31685.0,4.0241]
[1609818203049,0.14470521,31725.0,31711.0,0.13632608]
[1609818203249,0.14470521,31725.0,31685.0,4.0241]
[1609818204951,0.14470521,31725.0,31639.0,0.2894]
[1609818205152,5.193,31719.0,31661.0,4.3828]
[1609818205353,0.14470521,31725.0,31647.0,0.2704]
[1609818205554,0.14470521,31725.0,31647.0,0.1422]
[1609818205754,0.13632608,31664.0,31658.0,0.13632608]
[1609818205956,0.14583,31679.0,31647.0,0.1422]
[1609818207755,0.14583,31679.0,31670.0,0.13632608]
[1609818208456,0.14583,31679.0,31647.0,0.1422]
[1609818209657,0.14583,31679.0,31671.0,0.13632608]
[1609818210056,0.14583,31679.0,31647.0,0.1422]
[1609818210556,0.14583,31679.0,31637.0,4.2194]
[1609818211057,4.84007606,31701.0,31637.0,4.2194]
[1609818211257,0.1214,31679.0,31637.0,4.2194]
[1609818211759,0.1214,31679.0,31663.0,0.13632608]
[1609818212359,0.1214,31679.0,31651.0,3.9926]
[1609818214263,0.1214,31679.0,31619.0,0.0953]
[1609818214861,0.1214,31679.0,31659.0,0.13632608]
[1609818215562,0.1214,31679.0,31643.0,4.6216]
[1609818215964,0.1214,31679.0,31627.0,0.0934]
[1609818216162,4.0975,31681.0,31627.0,0.0934]
[1609818216963,0.62713132,31691.0,31661.0,0.13632608]
[1609818217163,3.7362,31682.0,31661.0,0.13632608]
[1609818217364,3.89172,31682.0,31661.0,0.13632608]
[1609818217562,3.89172,31682.0,31632.0,4.2225]
[1609818218464,3.89172,31682.0,31633.0,0.0937]
[1609818219368,0.15552,31682.0,31633.0,0.0937]
[1609818219563,3.7324,31675.0,31633.0,0.0937]
[1609818219764,0.12321,31675.0,31604.0,2.06059799]
[1609818219964,0.13632608,31639.0,31637.0,0.13632608]
[1609818220165,0.28377608,31639.0,31637.0,0.13632608]
[1609818220564,0.28377608,31639.0,31604.0,2.06059799]
[1609818220765,0.14745,31639.0,31633.0,0.0937]
[1609818221765,0.14745,31639.0,31608.0,0.0962]
[1609818221967,0.14745,31639.0,31592.0,0.0945]
[1609818222365,4.9515,31636.0,31592.0,0.0945]
[1609818222965,4.9515,31636.0,31585.0,3.18456054]
[1609818224267,0.14745,31639.0,31585.0,3.27826054]
[1609818224467,0.14745,31639.0,31621.0,0.13632608]
[1609818225168,3.682,31663.0,31621.0,0.13632608]
[1609818225469,1.21911464,31701.0,31600.0,2.24792508]
[1609818225670,4.92584635,31677.0,31609.0,4.4505]
[1609818225868,0.47426331,31650.0,31609.0,4.4505]
[1609818226068,0.57723331,31650.0,31609.0,4.4505]
[1609818226769,0.10297,31650.0,31635.0,0.13632608]
[1609818227369,0.7284,31649.0,31635.0,0.13632608]
[1609818227769,0.7284,31649.0,31609.0,4.4505]
[1609818228671,0.13632608,31633.0,31632.0,0.13632608]
[1609818228872,0.29501608,31633.0,31632.0,0.13632608]
[1609818229073,0.15869,31633.0,31632.0,0.13632608]
[1609818229473,5.1879,31632.0,31585.0,5.2778]
[1609818229674,0.15869,31633.0,31582.0,2.06269295]
[1609818229872,3.8833,31619.0,31582.0,2.06269295]
[1609818230072,4.02965,31619.0,31582.0,2.06269295]
[1609818230273,4.02965,31619.0,31573.0,2.06338375]
[1609818230473,4.02965,31619.0,31579.0,0.0953]
[1609818230674,4.02965,31619.0,31573.0,2.06338375]
[1609818231074,4.02965,31619.0,31559.0,5.95929003]
[1609818231275,0.14635,31619.0,31559.0,2.05859003]
[1609818231474,3.7315,31602.0,31559.0,2.05859003]
[1609818231673,3.87699,31602.0,31553.0,2.05917513]
[1609818232075,3.87699,31602.0,31553.0,1.05917513]
[1609818232573,0.14549,31602.0,31542.0,2.24680337]
[1609818232772,4.4858,31584.0,31573.0,0.13632608]
[1609818233974,0.15027,31585.0,31573.0,0.13632608]
[1609818234374,0.6256,31579.0,31573.0,0.13632608]
[1609818234974,0.6256,31579.0,31558.0,0.0949]
[1609818235375,0.6256,31579.0,31578.0,0.13632608]
[1609818235575,0.10375,31594.0,31578.0,0.0937]
[1609818236176,0.10375,31594.0,31573.0,0.0942]
[1609818236177,0.10375,31594.0,31560.0,3.8686]
[1609818237478,0.13632608,31593.0,31586.0,0.13632608]
[1609818238478,0.10375,31594.0,31586.0,0.13632608]
[1609818238680,4.0703,31617.0,31586.0,0.13632608]
[1609818239481,0.13632608,31590.0,31586.0,0.13632608]
[1609818240083,0.12238,31600.0,31560.0,3.8686]
[1609818241284,0.21838,31600.0,31551.0,0.0953]
[1609818242686,0.21838,31600.0,31583.0,0.13632608]
[1609818243289,0.096,31600.0,31551.0,0.0953]
[1609818243889,3.5548,31603.0,31551.0,0.0953]
[1609818244889,3.5548,31603.0,31579.0,0.13632608]
[1609818245093,0.14214,31610.0,31579.0,0.13632608]
[1609818245288,0.0948,31626.0,31559.0,0.0951]
[1609818245289,4.7536,31623.0,31559.0,0.0951]
[1609818245490,0.0948,31626.0,31559.0,0.0951]
[1609818245991,0.0941,31629.0,31559.0,0.0951]
[1609818246190,4.10821836,31633.0,31559.0,0.0951]
[1609818246392,0.00856765,31620.0,31559.0,0.0951]
[1609818246591,0.13688765,31620.0,31559.0,0.0951]
[1609818246891,0.13688765,31620.0,31605.0,0.13632608]
[1609818247293,0.12832,31620.0,31605.0,0.13632608]
[1609818247695,0.12832,31620.0,31578.0,4.221]
[1609818248796,0.10925,31628.0,31578.0,4.221]
[1609818248995,0.10925,31628.0,31616.0,0.13632608]
[1609818249597,0.51123145,31641.0,31616.0,0.13632608]
[1609818249798,0.51166568,31643.0,31619.0,4.5133]
[1609818250699,0.51166568,31643.0,31616.0,0.13632608]
[1609818250900,0.13228,31643.0,31616.0,0.13632608]
[1609818251098,0.13228,31643.0,31636.0,0.13632608]
[1609818252001,0.51333481,31655.0,31636.0,0.13632608]
[1609818252800,0.29683481,31655.0,31636.0,0.13632608]
[1609818252998,0.29683481,31655.0,31654.0,0.13632608]
[1609818253400,0.29683481,31655.0,31654.0,3.67992608]
[1609818253803,0.53420238,31657.0,31654.0,3.67992608]
[1609818254002,0.61493851,31660.0,31654.0,3.67992608]
[1609818254202,0.61493851,31660.0,31654.0,0.13632608]
[1609818254802,0.61493851,31660.0,31640.0,4.3206]
[1609818255307,0.13632608,31652.0,31650.0,0.13632608]
[1609818256804,0.13632608,31652.0,31640.0,4.3206]
[1609818257404,0.10219,31658.0,31640.0,4.3206]
[1609818257807,0.10219,31658.0,31640.0,4.43929]
[1609818258511,0.15103,31665.0,31640.0,4.43929]
[1609818259907,0.15103,31665.0,31664.0,0.13632608]
[1609818260108,0.13632608,31666.0,31664.0,0.13632608]
[1609818260508,0.13632608,31666.0,31655.0,4.241]
[1609818261108,0.14962,31667.0,31655.0,4.241]
[1609818261710,0.75951749,31680.0,31655.0,4.241]
[1609818261910,0.75951749,31680.0,31678.0,0.13632608]
[1609818262309,0.75951749,31680.0,31655.0,4.241]
[1609818262509,0.88324749,31680.0,31655.0,4.241]
[1609818262712,0.12373,31680.0,31655.0,4.241]
[1609818264714,0.12373,31680.0,31679.0,0.13632608]
[1609818265714,0.76931097,31696.0,31672.0,3.9506]
[1609818265916,0.77063923,31701.0,31672.0,3.9506]
[1609818266516,0.77103457,31703.0,31672.0,3.9506]
[1609818267315,0.77103457,31703.0,31700.0,0.13632608]
[1609818267516,0.77103457,31703.0,31670.0,0.11942]
[1609818267517,0.77103457,31703.0,31691.0,5.0806]
[1609818267717,0.86830457,31703.0,31691.0,5.0806]
[1609818268120,0.09727,31703.0,31691.0,5.0806]
[1609818269518,0.09727,31703.0,31701.0,0.13632608]
[1609818269918,0.77336438,31713.0,31701.0,0.13632608]
[1609818270117,0.77336438,31713.0,31691.0,5.0806]
[1609818270318,0.88006438,31713.0,31691.0,5.0806]
[1609818270820,0.1067,31713.0,31691.0,5.0806]
[1609818271920,0.1067,31713.0,31712.0,0.13632608]
[1609818272321,0.1067,31713.0,31691.0,5.0806]
[1609818275329,0.77200122,31715.0,31691.0,5.0806]
[1609818275524,0.77200122,31715.0,31670.0,0.21542]
[1609818275731,0.92187122,31715.0,31670.0,0.11942]
[1609818275922,0.272,31714.0,31664.0,4.6551]
[1609818276222,0.5698,31714.0,31664.0,4.6551]
[1609818276823,0.5698,31714.0,31676.0,0.13632608]
[1609818277823,0.5698,31714.0,31664.0,4.6551]
[1609818278924,0.5698,31714.0,31686.0,0.13632608]
[1609818279826,0.5698,31714.0,31670.0,0.0949]
[1609818280026,0.5698,31714.0,31675.0,5.2801]
[1609818280628,0.62801567,31705.0,31675.0,5.2801]
[1609818280828,0.77899567,31705.0,31675.0,5.2801]
[1609818281027,0.13632608,31699.0,31675.0,5.2801]
[1609818281427,0.77899567,31705.0,31675.0,5.2801]
[1609818281928,0.15098,31705.0,31675.0,5.2801]
[1609818282927,0.15098,31705.0,31694.0,0.13632608]
[1609818284028,0.63129869,31712.0,31694.0,0.13439922]
[1609818284428,0.63129869,31712.0,31698.0,3.9206]
[1609818285030,0.14987,31715.0,31711.0,0.13632608]
[1609818285229,0.52667833,31718.0,31711.0,0.13632608]
[1609818286230,0.13632608,31720.0,31711.0,0.13632608]
[1609818286931,0.13632608,31715.0,31711.0,0.13632608]
[1609818288932,0.13632608,31715.0,31690.0,3.8516]
[1609818289333,0.13632608,31715.0,31687.0,0.13004]
[1609818289532,0.13632608,31715.0,31669.0,4.8278]
[1609818289933,0.2709,31714.0,31669.0,4.8278]
[1609818291034,0.2709,31714.0,31692.0,0.13632608]
[1609818291234,0.52396542,31713.0,31692.0,0.13632608]
[1609818291733,0.52396542,31713.0,31669.0,4.8278]
[1609818291933,0.52396542,31713.0,31667.0,0.14608]
[1609818292132,0.52396542,31713.0,31672.0,5.0094]
[1609818292333,0.2709,31714.0,31672.0,5.0094]
[1609818292935,0.2709,31714.0,31697.0,0.13632608]
[1609818294337,0.287,31718.0,31697.0,0.13632608]
[1609818294938,0.13632608,31714.0,31711.0,0.13632608]
[1609818295137,0.287,31718.0,31711.0,0.13632608]
[1609818295337,0.52612231,31725.0,31711.0,0.13632608]
[1609818296839,0.5280263,31726.0,31711.0,0.13440017]
[1609818297039,0.5280263,31726.0,31716.0,0.13632608]
[1609818297239,0.52810635,31732.0,31716.0,0.13632608]
[1609818298142,0.52778119,31731.0,31716.0,0.13632608]
[1609818298339,0.64199119,31731.0,31716.0,0.13632608]
[1609818298940,0.13632608,31717.0,31716.0,0.13632608]
[1609818299142,0.25835608,31717.0,31716.0,0.13632608]
[1609818300943,0.12203,31717.0,31704.0,3.5298]
[1609818302046,0.12203,31717.0,31716.0,0.13632608]
[1609818303042,0.11421,31731.0,31716.0,0.86772608]
[1609818303242,0.11421,31731.0,31716.0,0.13632608]
[1609818303442,0.11421,31731.0,31717.0,3.5536]
[1609818303643,0.5302227,31733.0,31717.0,3.5536]
[1609818303843,0.63579853,31735.0,31702.0,0.0931]
[1609818303844,0.52999685,31735.0,31702.0,0.0931]
[1609818304043,0.52999685,31735.0,31719.0,4.2628]
[1609818304646,0.77724629,31739.0,31734.0,0.13632608]
[1609818304647,0.67436403,31739.0,31734.0,0.13632608]
[1609818305144,0.53803795,31739.0,31734.0,0.13632608]
[1609818305545,0.53803795,31739.0,31736.0,0.5092]
[1609818305746,0.34743795,31739.0,31734.0,0.13632608]
[1609818305945,0.34743795,31739.0,31738.0,4.6331]
[1609818306147,0.15592,31743.0,31738.0,4.6331]
[1609818306545,0.15592,31743.0,31734.0,0.13632608]
[1609818306748,0.15592,31743.0,31721.0,4.4776]
[1609818308346,0.15592,31743.0,31721.0,4.1236]
[1609818308949,0.64580568,31742.0,31727.0,0.13632608]
[1609818309949,0.64585292,31739.0,31727.0,0.13632608]
[1609818310848,0.13632608,31728.0,31727.0,0.13632608]
[1609818311048,0.15839,31728.0,31727.0,0.13632608]
[1609818311650,0.64952515,31735.0,31727.0,0.13632608]
[1609818311851,0.65021435,31738.0,31727.0,0.13632608]
[1609818312250,0.65021435,31738.0,31721.0,4.2191]
[1609818312451,1.11355808,31742.0,31721.0,4.2191]
[1609818312650,1.11355808,31742.0,31721.0,4.1236]
[1609818312852,1.11355808,31742.0,31741.0,0.13632608]
[1609818313252,0.80782121,31743.0,31741.0,0.13632608]
[1609818313956,0.15592,31743.0,31721.0,4.1236]
[1609818314157,0.14403,31743.0,31721.0,4.1236]
[1609818314756,0.01836525,31742.0,31721.0,4.1236]
[1609818314956,0.01836525,31742.0,31728.0,0.13632608]
[1609818315356,0.01834948,31739.0,31728.0,0.13632608]
[1609818316358,0.01833991,31736.0,31728.0,0.13632608]
[1609818316558,0.12894991,31736.0,31728.0,0.13632608]
[1609818316958,0.12894991,31736.0,31735.0,0.13632608]
[1609818317260,0.12894991,31736.0,31721.0,4.1236]
[1609818317958,0.11061,31736.0,31721.0,4.1236]
[1609818318259,0.11061,31736.0,31711.0,0.14371]
[1609818318459,0.11061,31736.0,31697.0,4.9305]
[1609818319359,0.01849636,31735.0,31721.0,0.13632608]
[1609818319758,0.01849636,31735.0,31697.0,4.9305]
[1609818319961,0.01845458,31727.0,31697.0,4.9305]
[1609818320158,0.13633458,31727.0,31697.0,4.9305]
[1609818320459,0.11788,31727.0,31697.0,4.9305]
[1609818321059,0.01845127,31726.0,31697.0,4.9305]
[1609818321259,0.01845127,31726.0,31714.0,0.13632608]
[1609818321661,0.01839884,31725.0,31714.0,0.13632608]
[1609818321860,0.01839884,31725.0,31704.0,0.13978]
[1609818322661,0.01839884,31725.0,31681.0,5.2123]
[1609818323264,0.01839884,31725.0,31699.0,0.13632608]
[1609818323462,0.01838708,31723.0,31681.0,5.2123]
[1609818324164,0.4623115,31726.0,31681.0,5.2123]
[1609818324165,0.01834943,31708.0,31681.0,5.2123]
[1609818324363,0.14546943,31708.0,31681.0,5.2123]
[1609818324564,0.01831658,31704.0,31675.0,0.15837]
[1609818325164,0.01831658,31704.0,31663.0,4.5267]
[1609818325365,0.01831901,31700.0,31663.0,4.5267]
[1609818325563,0.12931901,31700.0,31663.0,4.5267]
[1609818326166,0.01827926,31699.0,31663.0,4.5267]
[1609818326966,0.111,31700.0,31663.0,4.5267]
[1609818327166,0.111,31700.0,31663.0,4.67323]
[1609818327767,0.13632608,31696.0,31694.0,0.13632608]
[1609818328165,0.13632608,31696.0,31663.0,4.67323]
[1609818329668,0.111,31700.0,31687.0,0.13632608]
[1609818330267,0.01812209,31697.0,31663.0,4.67323]
[1609818330467,0.01812209,31697.0,31663.0,0.14653]
[1609818331068,0.01806491,31695.0,31663.0,0.14653]
[1609818331267,0.01806491,31695.0,31644.0,5.0917]
[1609818331768,0.01798698,31692.0,31644.0,5.0917]
[1609818331968,0.16692698,31692.0,31644.0,5.0917]
[1609818333470,0.01796835,31688.0,31640.0,0.11869]
[1609818333668,0.13632608,31641.0,31636.0,2.08819449]
[1609818333868,0.25875608,31641.0,31636.0,2.08819449]
[1609818334471,0.25875608,31641.0,31626.0,2.08926151]
[1609818335072,0.25875608,31641.0,31626.0,1.93596151]
[1609818335272,0.25875608,31641.0,31606.0,2.08898125]
[1609818335670,0.12243,31641.0,31615.0,0.13632608]
[1609818335872,0.12243,31641.0,31603.0,0.14523]
[1609818336071,5.1175,31636.0,31603.0,0.14523]
[1609818337171,0.0937,31635.0,31603.0,0.14523]
[1609818337370,5.1175,31636.0,31595.0,2.27905078]
[1609818337571,5.1175,31636.0,31595.0,2.43076078]
[1609818337874,5.1175,31636.0,31603.0,0.13632608]
[1609818338071,5.1175,31636.0,31595.0,0.15171]
[1609818339472,0.12243,31641.0,31595.0,0.15171]
[1609818339674,0.01764014,31644.0,31595.0,0.15171]
[1609818339875,0.81749603,31659.0,31595.0,0.15171]
[1609818340474,0.13632608,31624.0,31619.0,0.13632608]
[1609818340672,0.13632608,31624.0,31595.0,0.15171]
[1609818340873,0.23832608,31624.0,31595.0,0.15171]
[1609818341071,0.102,31624.0,31595.0,0.15171]
[1609818342472,0.102,31624.0,31606.0,0.13632608]
[1609818343373,0.102,31624.0,31595.0,0.15171]
[1609818343573,0.102,31624.0,31589.0,2.25644231]
[1609818343974,0.102,31624.0,31568.0,2.41357214]
[1609818344373,0.102,31624.0,31608.0,0.13632608]
[1609818346078,0.15833,31633.0,31597.0,0.15108]
[1609818346277,0.2882,31637.0,31597.0,0.15108]
[1609818346477,0.13632608,31598.0,31597.0,0.15108]
[1609818346676,0.13632608,31598.0,31590.0,0.13632608]
[1609818347076,3.6425,31604.0,31588.0,0.11858]
[1609818347277,3.6425,31604.0,31571.0,2.05051144]
[1609818347882,3.6425,31604.0,31565.0,2.04897805]
[1609818348479,3.6425,31604.0,31575.0,0.13632608]
[1609818348681,3.6425,31604.0,31575.0,0.25481608]
[1609818348880,3.6425,31604.0,31575.0,0.11849]
[1609818349282,0.14871,31605.0,31570.0,0.11005]
[1609818349482,3.7562,31593.0,31570.0,0.11005]
[1609818349682,3.86877,31593.0,31570.0,0.11005]
[1609818349890,0.11257,31593.0,31570.0,0.11005]
[1609818350483,0.13632608,31583.0,31570.0,0.11005]
[1609818350682,0.11257,31593.0,31570.0,0.11005]
[1609818351885,4.9888,31588.0,31570.0,0.1167]
[1609818352684,0.13632608,31571.0,31570.0,0.1167]
[1609818352886,0.13632608,31571.0,31529.0,2.04048149]
[1609818352887,4.27221,31571.0,31529.0,2.04048149]
[1609818353085,0.10711,31571.0,31529.0,2.04048149]
[1609818353286,4.8345,31547.0,31529.0,2.04048149]
[1609818353686,0.10768,31562.0,31529.0,2.04048149]
[1609818353887,4.8737,31536.0,31522.0,2.02790991]
[1609818354086,0.2221,31551.0,31522.0,2.02790991]
[1609818354287,4.9959,31547.0,31522.0,2.02790991]
[1609818354488,4.9959,31547.0,31509.0,2.76533169]
[1609818354489,4.9959,31547.0,31495.0,2.02860113]
[1609818354687,0.13632608,31516.0,31495.0,2.02860113]
[1609818355689,0.0951,31548.0,31474.0,2.01401311]
[1609818355690,3.5601,31515.0,31474.0,2.01401311]
[1609818356690,3.5601,31515.0,31463.0,4.4413]
[1609818356888,0.13632608,31501.0,31500.0,0.13632608]
[1609818357089,3.8513,31505.0,31500.0,0.0957]
[1609818357288,0.0958,31536.0,31500.0,0.0957]
[1609818357488,0.0958,31536.0,31490.0,0.0939]
[1609818357688,3.8848,31496.0,31477.0,0.0213121]
[1609818357991,0.0961,31525.0,31477.0,0.0213121]
[1609818358189,3.6938,31502.0,31477.0,0.0213121]
[1609818358993,0.096,31525.0,31477.0,0.0213121]
[1609818359389,0.1264,31551.0,31477.0,0.0213121]
[1609818359589,3.7126,31553.0,31477.0,0.0213121]
[1609818360191,0.13632608,31512.0,31508.0,0.13632608]
[1609818360991,0.13632608,31512.0,31477.0,0.0213121]
[1609818362294,4.465,31527.0,31494.0,0.13632608]
[1609818362492,0.10489,31551.0,31494.0,0.13632608]
[1609818363094,0.0936,31550.0,31494.0,0.13632608]
[1609818363295,0.6282,31549.0,31494.0,0.13632608]
[1609818363494,0.6282,31549.0,31487.0,4.5]
[1609818363897,0.10489,31551.0,31477.0,0.0213121]
[1609818364096,3.5637,31545.0,31477.0,0.0213121]
[1609818364296,0.13632608,31515.0,31514.0,0.13632608]
[1609818364697,3.5637,31545.0,31514.0,0.13632608]
[1609818364895,0.10489,31551.0,31514.0,0.13632608]
[1609818365096,3.5884,31561.0,31514.0,0.13632608]
[1609818365697,0.10768,31562.0,31514.0,0.13632608]
[1609818365897,0.02400133,31589.0,31514.0,0.13632608]
[1609818366098,0.0961,31578.0,31514.0,0.13632608]
[1609818366297,5.067,31591.0,31514.0,0.13632608]
[1609818366499,5.067,31591.0,31512.0,5.1606]
[1609818366897,5.067,31591.0,31536.0,0.13632608]
[1609818367099,5.067,31591.0,31512.0,5.1606]
[1609818368700,0.0958,31604.0,31506.0,0.0956]
[1609818368900,0.0958,31604.0,31530.0,3.8337]
[1609818369104,0.12009946,31610.0,31530.0,3.8337]
[1609818369303,0.12009946,31610.0,31574.0,0.13632608]
[1609818369504,0.0961,31610.0,31574.0,0.13632608]
[1609818369904,0.47466019,31624.0,31574.0,0.13632608]
[1609818370304,0.47560271,31618.0,31568.0,3.9961]
[1609818370506,0.63145271,31618.0,31568.0,3.9961]
[1609818371204,0.0954,31617.0,31568.0,3.9961]
[1609818371404,0.0954,31617.0,31578.0,0.13632608]
[1609818372204,0.15585,31618.0,31578.0,0.13632608]
[1609818372606,0.15585,31618.0,31579.0,0.5074]
[1609818373007,0.15585,31618.0,31578.0,0.13632608]
[1609818373207,0.15585,31618.0,31581.0,4.3038]
[1609818373408,0.15552,31625.0,31543.0,0.0961]
[1609818373608,0.15552,31625.0,31611.0,0.13632608]
[1609818374008,0.15552,31625.0,31595.0,3.8194]
[1609818375713,0.13632608,31612.0,31611.0,0.13632608]
[1609818375912,0.13632608,31612.0,31595.0,3.8194]
[1609818376112,0.15552,31625.0,31595.0,3.8194]
[1609818376913,0.0954,31653.0,31595.0,3.8194]
[1609818377616,0.02508272,31655.0,31595.0,3.8194]
[1609818377814,0.13632608,31625.0,31623.0,0.13632608]
[1609818378219,0.1525,31635.0,31578.0,0.0956]
[1609818378419,0.1525,31635.0,31612.0,4.115]
[1609818378818,0.1525,31635.0,31567.0,0.0953]
[1609818379018,0.1525,31635.0,31563.0,4.2326]
[1609818380120,0.1525,31635.0,31611.0,0.13632608]
[1609818380319,0.1525,31635.0,31597.0,4.4653]
[1609818382121,0.1525,31635.0,31606.0,0.13632608]
[1609818382623,0.1525,31635.0,31597.0,4.4653]
[1609818383923,0.0936,31652.0,31597.0,4.4653]
[1609818384125,0.13632608,31618.0,31615.0,0.13632608]
[1609818384725,0.13632608,31618.0,31597.0,4.4653]
[1609818385324,0.15707,31632.0,31597.0,4.4653]
[1609818386124,0.13632608,31614.0,31607.0,0.13632608]
[1609818387427,0.13632608,31614.0,31597.0,4.4653]
[1609818387624,0.13632608,31614.0,31559.0,0.2881]
[1609818387825,0.13632608,31614.0,31562.0,3.8167]
[1609818388225,0.11403,31618.0,31562.0,3.8167]
[1609818390124,0.11403,31618.0,31574.0,0.13632608]
[1609818390425,0.11403,31618.0,31562.0,3.8167]
[1609818390627,0.11403,31618.0,31546.0,2.05399958]
[1609818391027,3.7458,31613.0,31546.0,2.05399958]
[1609818391228,3.7458,31613.0,31546.0,2.04829958]
[1609818391829,3.7458,31613.0,31544.0,4.689]
[1609818392229,3.7458,31613.0,31553.0,0.13632608]
[1609818392230,0.01651358,31605.0,31553.0,0.13632608]
[1609818392427,0.15707358,31605.0,31553.0,0.13632608]
[1609818392627,0.15707358,31605.0,31544.0,4.689]
[1609818393228,0.15707358,31605.0,31509.0,2.24453351]
[1609818393427,4.6034,31596.0,31509.0,2.24453351]
[1609818393628,4.73089,31596.0,31509.0,2.24453351]
[1609818394028,4.73089,31596.0,31517.0,0.0939]
[1609818394228,4.73089,31596.0,31509.0,2.24453351]
[1609818394530,0.0938,31595.0,31552.0,0.13632608]
[1609818394931,0.12749,31596.0,31552.0,0.13632608]
[1609818395431,0.12749,31596.0,31536.0,4.4118]
[1609818395831,0.0951,31595.0,31536.0,4.4118]
[1609818396137,0.606,31590.0,31536.0,4.4118]